bitfinex-derivatives/quotes_BTCF0:USTF0_20210404
["timestamp","ask_amount","ask_price","bid_price","bid_amount"]
[1617554881813,0.3025297,58016.0,58015.0,1.8673328]
[1617554882010,0.3025297,58016.0,58015.0,2.8673328]
[1617554882211,0.01016,58019.0,58015.0,2.51]
[1617554882611,0.01016,58019.0,58018.0,1.0]
[1617554882810,0.30188269,58020.0,58018.0,1.0]
[1617554882811,0.01016011,58020.0,58018.0,1.0]
[1617554883010,0.01016011,58020.0,58018.0,1.27]
[1617554883211,0.01016009,58019.0,58018.0,0.27]
[1617554883410,0.01016009,58019.0,58018.0,0.37725655]
[1617554883610,0.01016009,58019.0,58018.0,1.10725655]
[1617554884011,0.01016009,58019.0,58018.0,1.37725655]
[1617554884211,0.30188545,58020.0,58018.0,1.37725655]
[1617554884212,0.01015997,58020.0,58018.0,1.37725655]
[1617554884512,0.01015997,58020.0,58018.0,0.37725655]
[1617554884711,0.01015997,58020.0,58019.0,1.0]
[1617554885011,0.30188194,58021.0,58019.0,1.0]
[1617554885211,0.30188194,58021.0,58019.0,1.27]
[1617554885412,0.30188194,58021.0,58020.0,1.0]
[1617554885813,0.30188194,58021.0,58020.0,1.27]
[1617554886613,0.66413815,58021.0,58020.0,1.27]
[1617554887443,0.66413815,58021.0,58020.0,1.90721]
[1617554887630,0.66413815,58021.0,58020.0,6.39161]
[1617554888318,0.2429357,58024.0,58020.0,6.39161]
[1617554888319,0.01015327,58024.0,58020.0,6.39161]
[1617554888719,0.30168293,58025.0,58023.0,1.0]
[1617554889020,0.30168293,58025.0,58020.0,5.12161]
[1617554889222,0.36200087,58027.0,58024.0,1.27]
[1617554889421,0.36200087,58027.0,58026.0,0.10725655]
[1617554889623,0.36200087,58027.0,58026.0,2.81645655]
[1617554889821,0.36200087,58027.0,58026.0,1.11725655]
[1617554890023,0.66369269,58027.0,58026.0,1.11725655]
[1617554891824,0.30169182,58027.0,58026.0,1.11725655]
[1617554892227,0.66370463,58027.0,58026.0,1.11725655]
[1617554893927,0.30169182,58027.0,58026.0,1.11725655]
[1617554897129,0.30169182,58027.0,58026.0,4.25835655]
[1617554897828,0.30169182,58027.0,58026.0,3.25835655]
[1617554898029,0.30169182,58027.0,58026.0,4.25835655]
[1617554898230,0.0101424,58028.0,58026.0,4.25835655]
[1617554898631,0.0101424,58028.0,58027.0,1.0]
[1617554899031,0.0101424,58028.0,58027.0,1.27]
[1617554899432,0.0101424,58028.0,58027.0,0.27]
[1617554899632,0.0101424,58028.0,58027.0,1.27]
[1617554900746,0.01013195,58030.0,58027.0,1.27]
[1617554901138,0.01013195,58030.0,58028.0,1.0]
[1617554901552,0.01013195,58030.0,58029.0,1.27]
[1617554901935,0.01013195,58031.0,58029.0,1.0]
[1617554902234,0.01013195,58031.0,58029.0,0.27]
[1617554902437,0.01013198,58030.0,58029.0,0.27]
[1617554902634,0.01013198,58030.0,58027.0,0.27]
[1617554902834,0.01013198,58030.0,58029.0,1.0]
[1617554903035,0.01013198,58030.0,58029.0,0.27]
[1617554903234,0.01013198,58030.0,58029.0,1.0]
[1617554903634,0.01013198,58030.0,58029.0,1.27]
[1617554903835,0.30104665,58032.0,58029.0,1.0]
[1617554904135,0.01013189,58031.0,58029.0,1.27]
[1617554904335,0.01013189,58031.0,58030.0,1.0]
[1617554904536,0.30104917,58032.0,58030.0,1.0]
[1617554904735,0.36123894,58034.0,58030.0,1.27]
[1617554904937,0.30104987,58032.0,58030.0,0.27]
[1617554905435,0.01013184,58031.0,58028.0,0.27]
[1617554905635,0.01013184,58031.0,58027.0,1.5]
[1617554905837,0.01013173,58033.0,58030.0,1.0]
[1617554906237,0.01013173,58033.0,58031.0,0.01]
[1617554906638,0.01013173,58033.0,58032.0,1.0]
[1617554906837,0.01013173,58033.0,58032.0,1.11175]
[1617554907038,0.01013173,58033.0,58032.0,1.12175]
[1617554907239,0.01013173,58033.0,58032.0,1.11175]
[1617554907440,0.01013173,58033.0,58032.0,1.21900655]
[1617554907638,0.01013173,58033.0,58032.0,1.48900655]
[1617554909441,0.01013093,58035.0,58032.0,1.48900655]
[1617554909654,0.01013093,58035.0,58034.0,3.3908]
[1617554910044,0.01013093,58035.0,58034.0,3.6608]
[1617554910250,0.30137218,58035.0,58034.0,4.6608]
[1617554911644,0.24287815,58044.0,58034.0,4.6608]
[1617554911645,0.01013703,58036.0,58034.0,4.6608]
[1617554912144,0.01013703,58036.0,58034.0,3.6608]
[1617554912345,0.01013703,58036.0,58035.0,1.0]
[1617554912745,0.01013703,58036.0,58035.0,2.77]
[1617554912946,0.01013699,58038.0,58035.0,2.77]
[1617554913347,0.0101363,58042.0,58036.0,1.0]
[1617554913547,0.0101363,58042.0,58041.0,0.10725655]
[1617554913946,0.0101363,58042.0,58041.0,1.11725655]
[1617554914146,0.01013616,58043.0,58041.0,1.11725655]
[1617554914447,0.01013609,58044.0,58041.0,1.11725655]
[1617554914647,0.01013609,58044.0,58043.0,1.0]
[1617554914847,0.01013609,58044.0,58042.0,1.0]
[1617554915049,0.01013609,58044.0,58043.0,1.27]
[1617554915448,0.11739244,58045.0,58043.0,1.0]
[1617554915850,0.11739244,58045.0,58044.0,1.0]
[1617554916051,0.11739244,58045.0,58044.0,1.15541]
[1617554916250,0.11739244,58045.0,58044.0,1.42541]
[1617554917052,0.10725655,58045.0,58044.0,1.42541]
[1617554917656,0.40841669,58045.0,58044.0,1.42541]
[1617554918053,0.10725655,58045.0,58044.0,1.42541]
[1617554920658,0.40927256,58045.0,58044.0,1.42541]
[1617554922659,0.10725655,58045.0,58044.0,1.42541]
[1617554922860,0.01014684,58046.0,58044.0,2.92541]
[1617554923259,0.01014607,58048.0,58045.0,1.0]
[1617554923458,0.01014607,58048.0,58046.0,1.5]
[1617554923659,0.01014593,58052.0,58048.0,2.5515]
[1617554924059,0.01014593,58052.0,58049.0,0.27]
[1617554924258,0.01014593,58052.0,58051.0,1.0]
[1617554924660,0.01014593,58052.0,58051.0,1.27]
[1617554925861,0.30145826,58053.0,58051.0,1.27]
[1617554926360,0.30145826,58053.0,58051.0,0.27]
[1617554926361,0.01014565,58052.0,58051.0,0.27]
[1617554926762,0.01014565,58052.0,58051.0,1.0]
[1617554927163,0.30145701,58052.0,58051.0,1.27]
[1617554927362,0.30145701,58052.0,58051.0,1.0]
[1617554927563,0.30145718,58053.0,58051.0,1.0]
[1617554927763,0.30145718,58053.0,58051.0,1.27]
[1617554927964,0.36172832,58055.0,58052.0,3.1082]
[1617554928163,0.36172832,58055.0,58052.0,4.1082]
[1617554928363,0.36172832,58055.0,58054.0,1.0]
[1617554928764,0.36173021,58056.0,58054.0,1.27]
[1617554929164,0.66318761,58055.0,58054.0,0.27]
[1617554929664,0.66318761,58055.0,58054.0,0.10725655]
[1617554929864,0.66318761,58055.0,58054.0,1.37725655]
[1617554930064,0.30145805,58055.0,58054.0,1.37725655]
[1617554930265,0.30145805,58055.0,58054.0,1.10725655]
[1617554930467,0.90599714,58055.0,58054.0,1.37725655]
[1617554930866,0.66318834,58055.0,58054.0,1.37725655]
[1617554931268,0.90599771,58055.0,58054.0,1.37725655]
[1617554931867,1.10597547,58055.0,58054.0,1.37725655]
[1617554932467,0.90599826,58055.0,58054.0,1.37725655]
[1617554932769,0.66318834,58055.0,58054.0,1.37725655]
[1617554934172,0.30145805,58055.0,58054.0,1.37725655]
[1617554935372,0.01015184,58055.0,58054.0,1.37725655]
[1617554936376,0.01015179,58056.0,58054.0,1.37725655]
[1617554936776,0.01015176,58055.0,58054.0,0.37725655]
[1617554937175,0.01015176,58055.0,58054.0,1.37725655]
[1617554937576,0.01015166,58057.0,58054.0,1.37725655]
[1617554937975,0.01015166,58057.0,58054.0,0.37725655]
[1617554938177,0.01015166,58057.0,58056.0,1.0]
[1617554938576,0.01015166,58057.0,58056.0,4.43967]
[1617554940379,0.30162876,58057.0,58056.0,1.40987]
[1617554940579,0.30162876,58057.0,58056.0,0.27]
[1617554940978,2.82292876,58057.0,58055.0,0.27]
[1617554941182,3.30347306,58057.0,58055.0,0.27]
[1617554941381,3.30347306,58057.0,58056.0,0.27]
[1617554941582,2.63988,58057.0,58049.0,0.01]
[1617554941782,2.74713655,58057.0,58044.0,0.27]
[1617554941983,3.85419208,58057.0,58056.0,0.01]
[1617554942183,3.85419208,58057.0,58050.0,0.01]
[1617554942383,4.35737936,58057.0,58042.0,0.10725655]
[1617554942583,4.35737936,58057.0,58056.0,0.01]
[1617554942783,3.45032383,58057.0,58043.0,0.27]
[1617554943084,3.25032383,58057.0,58045.0,0.25]
[1617554943288,0.22583655,58057.0,58056.0,0.02]
[1617554943484,0.22583655,58057.0,58043.0,0.27]
[1617554943685,0.10725655,58044.0,58042.0,0.10725655]
[1617554943885,0.25385655,58044.0,58042.0,0.10725655]
[1617554944086,0.61618188,58044.0,58043.0,0.27]
[1617554944486,0.91833617,58044.0,58043.0,0.27]
[1617554947488,0.91833617,58044.0,58043.0,3.7121]
[1617554947889,0.55601084,58044.0,58043.0,3.7121]
[1617554948089,0.40941084,58044.0,58043.0,0.27]
[1617554948790,0.77196865,58044.0,58043.0,0.27]
[1617554949691,1.01479445,58044.0,58043.0,0.27]
[1617554954516,0.9075379,58044.0,58043.0,0.27]
[1617554954723,0.9075379,58044.0,58043.0,1.39391]
[1617554954919,0.9075379,58044.0,58043.0,4.95081]
[1617554955197,0.01017223,58044.0,58043.0,5.30759371]
[1617554955725,0.01017211,58045.0,58043.0,5.30759371]
[1617554956115,0.36267703,58047.0,58044.0,1.06070308]
[1617554956497,0.36268288,58046.0,58045.0,1.27]
[1617554956918,0.36268288,58046.0,58044.0,0.27]
[1617554957115,0.66493397,58046.0,58044.0,0.27]
[1617554957298,0.66493397,58046.0,58045.0,0.27]
[1617554957517,0.30225246,58045.0,58044.0,0.27]
[1617554957919,0.40951063,58045.0,58043.0,0.01]
[1617554958099,0.40951063,58045.0,58044.0,0.27]
[1617554958309,0.46994312,58045.0,58044.0,0.27]
[1617554958500,0.46994312,58045.0,58043.0,0.27]
[1617554958715,0.77219721,58045.0,58044.0,0.27]
[1617554959002,0.46994312,58045.0,58043.0,0.27]
[1617554959401,0.46994312,58045.0,58044.0,0.27]
[1617554959604,0.10725655,58045.0,58043.0,0.27]
[1617554960002,0.77219948,58045.0,58044.0,2.8875]
[1617554960203,0.77219948,58045.0,58044.0,2.6175]
[1617554960604,0.77219948,58045.0,58044.0,2.8875]
[1617554961209,0.77219948,58045.0,58044.0,3.24497666]
[1617554962210,0.40951249,58045.0,58044.0,3.24497666]
[1617554962610,0.10725655,58045.0,58044.0,2.8875]
[1617554963009,0.30263987,58045.0,58044.0,3.24469293]
[1617554965913,0.7730485,58045.0,58044.0,3.24469293]
[1617554967716,0.7730485,58045.0,58044.0,0.62719293]
[1617554967923,4.3534485,58045.0,58044.0,0.62719293]
[1617554968116,4.3534485,58045.0,58044.0,0.27]
[1617554968316,5.3534485,58045.0,58044.0,0.27]
[1617554968517,6.1616638,58045.0,58043.0,0.01]
[1617554968818,6.1616638,58045.0,58044.0,0.27]
[1617554969017,4.68765655,58045.0,58044.0,0.27]
[1617554969217,4.68765655,58045.0,58039.0,0.26]
[1617554969417,6.30221459,58045.0,58044.0,0.01]
[1617554969819,6.30221459,58045.0,58040.0,0.25]
[1617554970018,6.30221459,58045.0,58044.0,0.27]
[1617554970421,1.1189,58043.0,58041.0,0.26]
[1617554970618,0.1189,58043.0,58036.0,0.01]
[1617554970819,1.61468035,58042.0,58033.0,0.27]
[1617554971018,2.31190256,58042.0,58037.0,0.03]
[1617554971219,0.50458506,58038.0,58037.0,0.03]
[1617554971420,1.50458506,58038.0,58034.0,0.24]
[1617554971619,1.50458506,58038.0,58037.0,0.01]
[1617554971820,2.61661262,58038.0,58037.0,0.01]
[1617554972020,6.35526917,58038.0,58035.0,0.24]
[1617554972221,6.35526917,58038.0,58037.0,0.02]
[1617554972622,6.35526917,58038.0,58034.0,0.25]
[1617554972623,4.73865655,58038.0,58036.0,0.24]
[1617554972823,4.73865655,58038.0,58037.0,0.02]
[1617554973026,5.35608517,58038.0,58037.0,0.02]
[1617554973223,5.35608517,58038.0,58035.0,0.24]
[1617554973423,5.35609716,58038.0,58033.0,0.03]
[1617554973623,5.35609716,58038.0,58037.0,0.01]
[1617554973624,1.72469716,58038.0,58037.0,0.01]
[1617554973823,0.10725655,58038.0,58036.0,0.25]
[1617554974026,0.10725655,58038.0,58034.0,0.03]
[1617554974225,1.72467776,58038.0,58037.0,0.01]
[1617554974425,1.42138602,58038.0,58031.0,0.35811469]
[1617554974626,1.42138602,58038.0,58035.0,0.02]
[1617554974627,1.72467333,58038.0,58035.0,0.02]
[1617554974825,1.72467333,58038.0,58037.0,0.02]
[1617554975026,1.72467333,58038.0,58033.0,0.35808927]
[1617554975225,1.72467333,58038.0,58036.0,0.25]
[1617554975426,1.96755489,58038.0,58037.0,0.02]
[1617554975626,1.96755489,58038.0,58032.0,0.35812542]
[1617554975826,1.96755489,58038.0,58034.0,0.26]
[1617554976026,1.96755489,58038.0,58037.0,0.27]
[1617554976227,1.96755489,58038.0,58034.0,0.35806572]
[1617554976427,0.2428775,58037.0,58035.0,0.26]
[1617554976826,0.2428775,58037.0,58033.0,0.26]
[1617554977026,0.2428775,58037.0,58036.0,0.26]
[1617554977426,0.2428775,58037.0,58034.0,0.27]
[1617554977627,1.86032476,58037.0,58036.0,0.27]
[1617554977827,1.86032476,58037.0,58033.0,0.01]
[1617554978026,1.86032476,58037.0,58035.0,0.26]
[1617554978426,1.86032476,58037.0,58032.0,0.27]
[1617554978626,1.10962466,58036.0,58031.0,0.02]
[1617554978826,1.10962466,58036.0,58030.0,0.10725655]
[1617554979027,0.44382447,58034.0,58033.0,0.27]
[1617554979227,0.44382447,58034.0,58031.0,0.27]
[1617554979627,1.10961488,58034.0,58033.0,0.27]
[1617554979828,1.10961488,58034.0,58031.0,0.27]
[1617554980028,0.10725655,58032.0,58031.0,0.27]
[1617554980228,0.10725655,58032.0,58030.0,0.10725655]
[1617554980429,0.77305276,58032.0,58031.0,0.27]
[1617554980829,1.01593784,58032.0,58031.0,0.27]
[1617554981230,1.45979029,58032.0,58031.0,0.27]
[1617554982629,1.01593784,58032.0,58031.0,0.27]
[1617554984130,3.98953784,58032.0,58031.0,0.27]
[1617554984931,4.43322231,58032.0,58031.0,0.27]
[1617554986634,3.98953784,58032.0,58031.0,0.27]
[1617554987234,4.43322093,58032.0,58031.0,0.27]
[1617554987634,4.19033585,58032.0,58031.0,0.27]
[1617554988436,4.24163585,58032.0,58031.0,0.27]
[1617554989037,5.24163585,58032.0,58026.0,0.27]
[1617554989481,5.24163585,58032.0,58031.0,0.07]
[1617554989482,3.63636601,58032.0,58031.0,0.07]
[1617554989663,3.63636601,58032.0,58027.0,0.01]
[1617554989862,4.74329421,58032.0,58027.0,0.01]
[1617554990062,4.74329421,58032.0,58031.0,0.0102]
[1617554990246,6.24329421,58032.0,58028.0,0.01]
[1617554990462,1.5,58030.0,58028.0,0.01]
[1617554990649,1.5,58028.0,58005.0,0.35839693]
[1617554990841,1.5,58028.0,58025.0,0.27]
[1617554991039,1.62064,58028.0,58025.0,0.2526]
[1617554991269,1.6101359,58026.0,58006.0,0.23]
[1617554991461,0.24294123,58027.0,58026.0,0.25]
[1617554991873,1.24294123,58027.0,58007.0,0.24]
[1617554992061,1.24294123,58027.0,58019.0,0.01]
[1617554992467,1.24294123,58027.0,58008.0,0.24]
[1617554992673,1.10698051,58020.0,58006.0,0.01]
[1617554992873,1.10698051,58020.0,58009.0,0.27]
[1617554993069,0.01016105,58013.0,58009.0,0.27]
[1617554993258,0.01016105,58013.0,58007.0,0.36829326]
[1617554993467,0.01016121,58014.0,58010.0,0.01]
[1617554993840,0.01016109,58013.0,58009.0,0.01]
[1617554994240,0.01016109,58013.0,58011.0,0.26]
[1617554994439,0.01016109,58013.0,58010.0,0.01]
[1617554994642,0.01016115,58012.0,58010.0,0.01]
[1617554994839,0.01016115,58012.0,58006.0,0.35836283]
[1617554995040,0.01016115,58012.0,58011.0,0.26]
[1617554995439,0.01016115,58012.0,58006.0,0.35836283]
[1617554995641,0.30192803,58012.0,58011.0,0.27]
[1617554996040,0.30192803,58012.0,58000.0,0.43736925]
[1617554996041,0.30192982,58010.0,58003.0,0.35795721]
[1617554996241,0.30192982,58010.0,58008.0,0.02]
[1617554996441,0.30192982,58010.0,58006.0,0.26]
[1617554996639,0.30192982,58010.0,58005.0,0.10725655]
[1617554996840,0.01016164,58010.0,58005.0,0.10725655]
[1617554997041,0.01016164,58010.0,58006.0,0.27]
[1617554997246,2.8213,58007.0,58006.0,0.27]
[1617554997440,2.98368,58007.0,58006.0,0.27]
[1617554998041,3.28561894,58007.0,58006.0,0.27]
[1617554998442,2.98368,58007.0,58006.0,0.27]
[1617554998944,3.28563577,58007.0,58000.0,0.27]
[1617554999143,3.28563577,58007.0,58001.0,0.27]
[1617554999367,0.01016228,58002.0,58001.0,0.27]
[1617554999560,0.01016228,58002.0,57998.0,0.27]
[1617554999745,0.30196094,58002.0,58001.0,0.01]
[1617555000144,0.77155561,58002.0,57992.0,0.27]
[1617555000344,0.77155561,58002.0,57998.0,0.25]
[1617555000545,0.10725655,58002.0,58001.0,0.02]
[1617555000744,0.10725655,58002.0,57992.0,0.27]
[1617555000945,0.10725655,58002.0,57999.0,0.24]
[1617555001144,0.10725655,58002.0,58001.0,0.03]
[1617555001345,0.10725655,58002.0,57992.0,0.27]
[1617555001575,0.10725655,58002.0,58000.0,0.23]
[1617555001772,0.10725655,58002.0,58001.0,0.04]
[1617555001969,0.10725655,58002.0,57992.0,0.27]
[1617555002167,0.10725655,57993.0,57991.0,0.10725655]
[1617555002366,0.0515,58004.0,58001.0,0.27]
[1617555002795,0.0515,58004.0,57992.0,1.77]
[1617555003008,0.0515,58004.0,58002.0,0.27]
[1617555003187,0.0514,58014.0,58002.0,0.27]
[1617555003188,0.01012548,58013.0,58003.0,3.60428]
[1617555003380,0.01012548,58013.0,58004.0,0.2]
[1617555003588,3.69662492,58021.0,58009.0,1.0]
[1617555003774,3.69662492,58021.0,58010.0,0.2]
[1617555003984,3.69662492,58021.0,58012.0,1.0]
[1617555004150,0.11738113,58025.0,58020.0,0.10725655]
[1617555004348,0.11738113,58025.0,58021.0,3.2008]
[1617555004549,0.10725655,58025.0,58021.0,3.2108]
[1617555004748,0.48721843,58028.0,58021.0,3.2108]
[1617555004950,0.4771,58028.0,58021.0,3.2108]
[1617555006252,0.4771,58028.0,58027.0,0.10725655]
[1617555006451,0.10725655,58032.0,58027.0,0.10725655]
[1617555006650,0.10725655,58032.0,58027.0,0.37725655]
[1617555010355,0.11737452,58032.0,58027.0,0.37725655]
[1617555010756,0.01011766,58031.0,58027.0,0.37725655]
[1617555010955,0.40788135,58032.0,58027.0,0.37725655]
[1617555011266,0.11737425,58032.0,58027.0,0.37725655]
[1617555011557,0.10725655,58032.0,58027.0,0.37725655]
[1617555012568,0.0515,58031.0,58027.0,0.37725655]
[1617555012971,0.01012859,58030.0,58027.0,0.37725655]
[1617555013787,0.11738507,58032.0,58027.0,0.37725655]
[1617555014660,0.10725655,58032.0,58027.0,0.37725655]
[1617555015061,0.11738718,58032.0,58027.0,0.37725655]
[1617555015560,0.01013073,58031.0,58027.0,0.37725655]
[1617555016461,0.10725655,58032.0,58027.0,0.37725655]
[1617555016860,0.10725655,58032.0,58027.0,0.57725655]
[1617555017260,0.01012982,58034.0,58027.0,0.57725655]
[1617555017461,0.30098596,58036.0,58035.0,3.3705]
[1617555017462,0.01012989,58036.0,58035.0,3.3705]
[1617555017863,0.01012971,58039.0,58035.0,3.78818]
[1617555018264,0.01012971,58039.0,58038.0,0.10725655]
[1617555018664,0.01012936,58041.0,58038.0,0.37725655]
[1617555019064,0.01012936,58041.0,58040.0,2.9266]
[1617555019265,0.30097228,58042.0,58040.0,2.9266]
[1617555019266,0.01012924,58042.0,58040.0,2.9266]
[1617555019465,0.01012924,58042.0,58040.0,3.1966]
[1617555020268,0.01012893,58043.0,58040.0,3.1966]
[1617555020666,0.01012893,58043.0,58040.0,0.27]
[1617555021067,0.01012883,58044.0,58039.0,0.27]
[1617555021466,0.01012883,58044.0,58041.0,0.27]
[1617555021666,0.01012883,58044.0,58039.0,0.27]
[1617555022466,0.01012875,58045.0,58039.0,0.27]
[1617555023970,0.11738711,58046.0,58039.0,0.27]
[1617555024370,0.01013056,58046.0,58039.0,0.27]
[1617555024570,0.15838056,58046.0,58039.0,0.27]
[1617555024771,3.3164,58040.0,58029.0,0.27]
[1617555024971,3.61743093,58040.0,58029.0,0.27]
[1617555025169,3.61743093,58040.0,58025.0,1.0]
[1617555025370,3.61743093,58040.0,58030.0,0.27]
[1617555025371,0.01013138,58039.0,58030.0,0.27]
[1617555025773,0.01013138,58039.0,58025.0,1.0]
[1617555025972,0.01013138,58039.0,58031.0,0.26]
[1617555026172,0.01013138,58038.0,58031.0,0.26]
[1617555026373,0.01013138,58038.0,58037.0,0.10725655]
[1617555026773,0.01013138,58038.0,58037.0,0.11725655]
[1617555027975,0.11739425,58039.0,58037.0,0.11725655]
[1617555028380,0.30122221,58038.0,58037.0,0.11725655]
[1617555028575,0.43299221,58038.0,58037.0,0.11725655]
[1617555029177,0.79445217,58038.0,58037.0,0.11725655]
[1617555029978,1.0373169,58038.0,58037.0,0.11725655]
[1617555030279,0.67585694,58038.0,58037.0,0.11725655]
[1617555030678,0.43299221,58038.0,58037.0,0.11725655]
[1617555031080,0.30122221,58038.0,58037.0,0.11725655]
[1617555034388,0.30122221,58038.0,58037.0,0.01]
[1617555034788,0.30122221,58038.0,58031.0,0.27]
[1617555034989,0.30122221,58038.0,58037.0,0.10725655]
[1617555035189,3.11692221,58038.0,58037.0,0.37725655]
[1617555035388,3.11692221,58038.0,58037.0,0.10725655]
[1617555035691,3.11692221,58038.0,58037.0,0.37725655]
[1617555037090,3.22417876,58038.0,58037.0,0.37725655]
[1617555038292,0.40847876,58038.0,58037.0,0.37725655]
[1617555038695,0.40847876,58038.0,58037.0,0.27]
[1617555039093,5.21761031,58038.0,58027.0,0.10725655]
[1617555039292,5.21761031,58038.0,58021.0,0.01]
[1617555039293,4.32405031,58038.0,58021.0,0.01]
[1617555039492,4.32405031,58038.0,58037.0,0.26]
[1617555039493,6.82405031,58038.0,58037.0,0.26]
[1617555039692,5.16139655,58038.0,58022.0,0.01]
[1617555039891,2.71369655,58038.0,58022.0,0.01]
[1617555040091,3.6351,58023.0,58018.0,0.25]
[1617555040293,3.76034,58023.0,58020.0,0.27]
[1617555040492,4.06158184,58023.0,58020.0,0.27]
[1617555040692,4.06158184,58023.0,58019.0,0.27]
[1617555040892,0.01013818,58021.0,58018.0,0.01]
[1617555041094,0.10725655,58020.0,58015.0,0.10725655]
[1617555041296,0.10725655,58020.0,58018.0,0.27]
[1617555041493,0.10725655,58020.0,58016.0,0.01]
[1617555056008,0.10725655,58020.0,58016.0,2.7611]
[1617555057110,0.10725655,58020.0,58017.0,0.2]
[1617555057512,0.10725655,58020.0,58018.0,0.27]
[1617555057711,0.10725655,58020.0,58019.0,0.2]
[1617555058111,0.10725655,58020.0,58019.0,0.21]
[1617555060414,0.40954436,58020.0,58019.0,0.21]
[1617555060615,0.30228781,58020.0,58019.0,0.21]
[1617555060812,0.30228781,58020.0,58019.0,0.01]
[1617555061015,0.01017335,58020.0,58019.0,0.21]
[1617555061215,0.01017335,58020.0,58019.0,0.2]
[1617555061415,0.01017335,58020.0,58019.0,0.55587492]
[1617555061616,0.01017335,58020.0,58019.0,0.57587492]
[1617555061816,0.01017335,58020.0,58019.0,0.08072447]
[1617555062218,2.84718234,58021.0,58019.0,0.08072447]
[1617555063017,2.84718234,58021.0,58019.0,0.02]
[1617555064218,2.84718234,58021.0,58019.0,0.37726497]
[1617555065021,2.5449,58021.0,58019.0,0.37726497]
[1617555065221,0.05670672,58020.0,58019.0,0.37726497]
[1617555065422,0.520807,58020.0,58019.0,0.02]
[1617555065823,0.520807,58020.0,58018.0,0.26]
[1617555066223,0.520807,58020.0,58019.0,0.02]
[1617555066423,0.21851672,58020.0,58018.0,0.27]
[1617555066824,0.88356018,58020.0,58019.0,0.02]
[1617555067023,0.88356018,58020.0,58016.0,2.7511]
[1617555067224,0.88356018,58020.0,58018.0,0.26]
[1617555067426,0.88356018,58020.0,58019.0,0.02]
[1617555067625,0.21851672,58020.0,58016.0,2.7511]
[1617555067824,0.21851672,58020.0,58018.0,0.27]
[1617555068025,0.21851672,58020.0,58019.0,0.03]
[1617555068225,0.21851672,58020.0,58019.0,0.0512]
[1617555068426,0.88354905,58020.0,58019.0,0.0512]
[1617555068625,0.88354905,58020.0,58019.0,0.3212]
[1617555069426,0.88354905,58020.0,58019.0,0.27]
[1617555069927,0.88354905,58020.0,58017.0,0.27]
[1617555070128,0.88354905,58020.0,58019.0,0.27]
[1617555070449,0.88354905,58020.0,58017.0,0.27]
[1617555070648,0.5208133,58020.0,58017.0,0.27]
[1617555070833,0.5208133,58020.0,58019.0,0.27]
[1617555071054,0.5208133,58020.0,58017.0,0.27]
[1617555071055,0.21851672,58020.0,58017.0,0.27]
[1617555071435,0.21851672,58020.0,58019.0,0.27]
[1617555071634,0.21851672,58020.0,58017.0,0.27]
[1617555071831,0.88353658,58020.0,58017.0,0.27]
[1617555072035,0.88353658,58020.0,58019.0,0.27]
[1617555072231,0.21851672,58020.0,58016.0,2.7511]
[1617555072430,0.21851672,58020.0,58017.0,0.27]
[1617555072629,0.21851672,58020.0,58019.0,0.27]
[1617555073031,0.21851672,58020.0,58017.0,0.27]
[1617555073230,0.88316898,58020.0,58019.0,0.27]
[1617555073631,0.58104516,58020.0,58017.0,0.27]
[1617555073830,1.58104516,58020.0,58019.0,0.27]
[1617555074230,0.58104516,58020.0,58017.0,0.27]
[1617555074434,2.8481,58018.0,58013.0,0.01]
[1617555074631,2.8481,58018.0,58010.0,0.35773152]
[1617555074832,0.66474389,58013.0,58008.0,0.01]
[1617555075033,0.66474389,58013.0,58011.0,0.26]
[1617555075231,0.44312903,58017.0,58011.0,0.26]
[1617555075232,0.10725655,58012.0,58011.0,0.26]
[1617555075432,0.10725655,58012.0,58009.0,0.02]
[1617555075632,0.77203512,58012.0,58005.0,0.26]
[1617555075833,1.0,58010.0,58007.0,0.27]
[1617555076034,1.66409903,58010.0,58007.0,0.27]
[1617555076233,1.0,58009.0,58000.0,0.02]
[1617555076432,1.0,58009.0,58008.0,0.27]
[1617555076833,1.66409698,58009.0,57999.0,0.10725655]
[1617555077033,1.66409698,58009.0,58008.0,0.27]
[1617555077234,1.0,58009.0,58000.0,0.02]
[1617555077634,1.0,58009.0,58008.0,0.27]
[1617555077833,1.0,58009.0,57999.0,0.10725655]
[1617555077834,1.66410899,58009.0,57999.0,0.10725655]
[1617555078033,1.66410899,58009.0,58000.0,0.27]
[1617555078233,1.66410899,58009.0,58008.0,0.27]
[1617555078434,1.66410899,58009.0,57999.0,0.10725655]
[1617555078635,1.66410899,58009.0,58000.0,0.27]
[1617555078835,0.66410899,58009.0,58008.0,0.27]
[1617555079049,0.10725655,58012.0,58008.0,3.42363]
[1617555079236,0.10725655,58012.0,58011.0,0.10725655]
[1617555079436,0.44268108,58013.0,58011.0,0.10725655]
[1617555079638,0.36217762,58013.0,58011.0,0.11725655]
[1617555079838,0.36217762,58013.0,58012.0,0.2]
[1617555080038,0.30181775,58015.0,58011.0,0.11725655]
[1617555080239,0.30181775,58015.0,58012.0,0.27]
[1617555080439,0.30181511,58016.0,58012.0,0.27]
[1617555080840,0.30180915,58019.0,58013.0,0.2]
[1617555081339,0.10725655,58023.0,58018.0,0.10725655]
[1617555081840,0.30180907,58020.0,58018.0,0.10725655]
[1617555082039,0.30180907,58020.0,58019.0,0.27]
[1617555082440,0.30180591,58021.0,58019.0,0.27]
[1617555082639,0.10725655,58023.0,58019.0,0.27]
[1617555082843,0.30181248,58021.0,58019.0,0.27]
[1617555083050,0.10725655,58023.0,58019.0,0.27]
[1617555083341,0.30181253,58020.0,58019.0,0.27]
[1617555083843,0.66448806,58020.0,58019.0,0.27]
[1617555084644,0.30181253,58020.0,58019.0,0.27]
[1617555084944,0.66448247,58020.0,58019.0,0.27]
[1617555085447,0.30181253,58020.0,58019.0,0.27]
[1617555086047,0.36267004,58021.0,58019.0,0.27]
[1617555086245,0.9078286,58020.0,58019.0,0.27]